[Event "VII Totalizator Sportowy 2022"]
[Site "Bydgoszcz"]
[Date "2022.06.28"]
[Round "4.2"]
[White "Licznerski, Lukasz"]
[Black "Krasenkow, Michal"]
[Result "1/2-1/2"]
[ECO "B06"]
[WhiteElo "2439"]
[BlackElo "2576"]
[Annotator "TA"]
[PlyCount "107"]
[EventDate "2022.06.25"]
[EventType "swiss"]
[EventCountry "POL"]
[SourceTitle "playchess.com"]
[Source "ChessBase"]
[SourceQuality "1"]
[TimeControl "40/5400+30:1800+30"]

{[%evp 13,107,0,6,0,0,0,0,0,0,0,0,0,0,0,0,0,0,0,0,0,0,0,0,4,45,45,44,37,97,95,105,60,79,45,184,185,305,229,233,207,235,184,222,252,253,243,236,246,219,219,275,266,256,265,293,256,447,251,447,430,415,401,716,398,405,0,739,722,666,679,735,705,743,750,679,706,681,666,612,97,97,97,97,237,237,65,65,45,56,57,57,45,45,45,45,0]} 1. e4 {[%emt 0:03:24]} g6 {[%emt 0:00:07]} 2. d4 {[%emt 0:00:08]} Bg7 3. Nc3 {[%emt 0:09:45]} d6 {[%emt 0:01:01]} 4. Be3 {[%emt 0:00:12]} Nf6 {[%emt 0:00:13]} 5. f3 {[%emt 0:00:59]} c6 {[%emt 0:00:50]} 6. Qd2 {[%emt 0:00:14]} b5 {[%emt 0:00:05]} 7. Bd3 {[%emt 0:06:39]} Nbd7 {[%emt 0:01:10]} 8. a4 {[%emt 0:11:24] B07: Pirc Defence: Miscellaneous Systems.} b4 {[%emt 0:00:28]} 9. Nce2 {[%emt 0:05:28]} a5 {[%emt 0:01:35] [#]} 10. Bh6 $146 {[%emt 0:03:50] The position is equal.} ({Predecessor:} 10. b3 O-O 11. h4 e5 12. Rd1 d5 13. h5 Nxh5 14. g4 Nf4 15. Nxf4 exf4 16. Qh2 {1-0 (45) Escalante Ramirez,B (2442)-Grabinsky,A (2375) Saint Louis 2018}) 10... Bxh6 {[%emt 0:02:58]} 11. Qxh6 {[%emt 0:00:54]} Qb6 {[%emt 0:03:50]} 12. Nh3 {[%emt 0:01:29]} c5 {[%emt 0:03:04]} 13. c3 {[%emt 0:02:59]} Ba6 {[%emt 0:03:05]} 14. Bxa6 {[%emt 0:02:52]} Qxa6 {[%emt 0:00:09]} 15. Kf2 {[%emt 0:07:53]} Rb8 {[%emt 0:02:18]} 16. Rhd1 {[%emt 0:06:31] Against Qd3} bxc3 {[%emt 0:03:54]} 17. bxc3 {[%emt 0:00:13]} Rb2 $1 {[%emt 0:00:21]} 18. Nhf4 {[%emt 0:01:55]} cxd4 {[%emt 0:16:02]} 19. cxd4 {[%emt 0:00:16]} e5 {[%emt 0:00:07]} 20. Nd3 {[%emt 0:02:44]} Rb3 {[%emt 0:01:01] [#]} ({Black should try} 20... Rc2 $14) 21. Rac1 $1 $16 {[%emt 0:01:55][%cal Od4e5]} Ke7 {[%emt 0:05:13]} (21... Rxd3 $2 22. Rxd3 Qxd3 23. Rc8+ Ke7 24. Rxh8 $18) 22. dxe5 {[%emt 0:01:24]} dxe5 {[%emt 0:02:04]} 23. Nc3 {[%emt 0:01:52] And now Kg1 would win.} Qb6+ {[%emt 0:06:28]} ({Better is} 23... Ra3 $1 $14) 24. Kf1 $18 {[%emt 0:00:55][%cal Bf2f1,Bf1e2,Be2d1,Bd1c1][%mdl 32] Threatens to win with Qg5.} Qd4 {[%emt 0:12:14] [#]} (24... Rb8 $142 25. Nb5 Rd8) 25. Nf4 $1 {[%emt 0:04:37][%mdl 512]} Rxc3 {[%emt 0:14:41]} 26. Nd5+ {[%emt 0:01:45]} Nxd5 {[%emt 0:00:51]} 27. Rxd4 {[%emt 0:00:10]} Ne3+ {[%emt 0:00:55]} 28. Ke2 {[%emt 0:00:15]} exd4 {[%emt 0:02:09]} 29. Rxc3 {[%emt 0:00:41] The board is on fire.} dxc3 {[%emt 0:00:04]} 30. Qxe3 {[%emt 0:00:48][%mdl 4096] Endgame KQ-KRN} Rc8 {[%emt 0:00:03] Strongly threatening ...c2.} 31. Kd1 {[%emt 0:04:03]} c2+ {[%emt 0:00:06]} 32. Kc1 {[%emt 0:00:01] Qg5+ is the strong threat.} Rc5 {[%emt 0:00:49] Against Qg5+} 33. Qd4 {[%emt 0:05:34]} h5 {[%emt 0:00:52]} 34. f4 {[%emt 0:00:53]} f6 $2 {[%emt 0:03:35]} (34... g5 35. g3 h4) 35. g3 {[%emt 0:02:02]} (35. h4 $142) 35... Ke6 $2 {[%emt 0:09:14]} (35... g5 {was necessary.} 36. Qd3 g4) 36. Qd3 {[%emt 0:01:20]} Ke7 {[%emt 0:01:43]} 37. h4 {[%emt 0:08:29]} Ke6 {[%emt 0:03:27]} (37... Nb8 $142 38. e5 fxe5 39. fxe5 (39. Qxg6 Nc6 $11) 39... Rxe5 40. Qxg6 (40. Kxc2 Re6 $16) 40... Nd7) 38. Qb3+ {[%emt 0:00:42]} Ke7 {[%emt 0:01:08]} 39. Qd3 {[%emt 0:00:26]} (39. Qa3 $142) 39... Ke6 $1 {[%emt 0:00:08]} 40. e5 {[%emt 0:00:00]} fxe5 {[%emt 0:00:00]} 41. Qxg6+ {[%emt 0:03:04]} Ke7 {[%emt 0:02:08]} 42. f5 {[%emt 0:10:22][%cal Bf4f5,Bf5f6][%mdl 32]} e4 {[%emt 0:07:38][%cal Be5e4,Be4e3,Be3e2][%mdl 32]} 43. Qe6+ {[%emt 0:04:14]} Kd8 {[%emt 0:00:01]} 44. f6 {[%emt 0:00:12]} Re5 {[%emt 0:00:16]} 45. Qg8+ {[%emt 0:00:12]} Kc7 {[%emt 0:00:16]} 46. Kxc2 $2 {[%emt 0:15:53]} (46. Qc4+ $1 $18 {is the precise move to win.} Kd8 47. f7) 46... e3 $16 {[%emt 0:01:52] [#] White must now prevent ...e2.} 47. Kd1 {[%emt 0:00:38]} e2+ {[%emt 0:00:19]} 48. Ke1 {[%emt 0:00:01]} Nxf6 {[%emt 0:00:08] [#]} 49. Qg7+ {[%emt 0:02:09]} ({White must play} 49. Qf7+ $1 $18 Nd7 50. g4 hxg4 51. h5) 49... Nd7 $14 {[%emt 0:01:31] White is slightly better.} 50. g4 {[%emt 0:00:01]} hxg4 {[%emt 0:00:37]} 51. Qxg4 {[%emt 0:00:03] Hoping for h5.} Nc5 $1 {[%emt 0:00:31] ( -> ...Nd3+)} 52. Qd4 {[%emt 0:00:51] Against Nd3+} Kc6 $1 {[%emt 0:00:37]} 53. Qc4 {[%emt 0:01:02]} Kd6 {[%emt 0:00:58]} 54. Qd4+ {[%emt 0:00:08] Weighted Error Value: White=0.55/Black=0.21 (precise)} 1/2-1/2

[Event "VII Totalizator Sportowy 2022"]
[Site "Bydgoszcz"]
[Date "2022.06.28"]
[Round "4.3"]
[White "Maksimenko, Andrei"]
[Black "Czarnota, Pawel"]
[Result "1/2-1/2"]
[ECO "D41"]
[WhiteElo "2434"]
[BlackElo "2502"]
[Annotator "TA"]
[PlyCount "55"]
[EventDate "2022.06.25"]
[EventType "swiss"]
[EventCountry "POL"]
[SourceTitle "playchess.com"]
[Source "ChessBase"]
[SourceQuality "1"]
[TimeControl "40/5400+30:1800+30"]

{[%evp 25,34,20,29,19,31,14,34,46,34,23,25]} 1. d4 Nf6 2. c4 e6 3. Nf3 d5 4. Nc3 c5 5. cxd5 Nxd5 6. e4 Nxc3 7. bxc3 cxd4 8. cxd4 Bb4+ 9. Bd2 Bxd2+ 10. Qxd2 O-O 11. Bc4 Nd7 12. O-O b6 13. Rfe1 Bb7 14. a4 {D41: Queen's Gambit Declined: Semi-Tarrasch with 5 cxd5.} Rc8 15. Bd3 h6 16. a5 Qc7 17. axb6 axb6 {[#] Black did not feel at home in the position after the opening.  Weighted Error Value: White=0.02 (flawless) /Black=0.05 (flawless)} {Predecessor:} 18. Ra3 $146 Rfd8 19. Qb2 Qd6 20. Rb3 Rc7 21. Ne5 Nf6 22. Nf3 Qf4 23. Qe2 Rc1 24. Qe3 Rxe1+ 25. Nxe1 Qxe3 26. fxe3 Bxe4 27. Bxe4 Nxe4 28. Rxb6 {0-1 (42) Deac,B (2572)-Kramnik,V (2809) Medias 2016} 1/2-1/2

[Event "VII Totalizator Sportowy 2022"]
[Site "Bydgoszcz"]
[Date "2022.06.28"]
[Round "4.4"]
[White "Jakubowski, Krzysztof"]
[Black "Kosakowski, Jakub"]
[Result "1-0"]
[ECO "B90"]
[WhiteElo "2475"]
[BlackElo "2435"]
[Annotator "TA"]
[PlyCount "117"]
[EventDate "2022.06.25"]
[EventType "swiss"]
[EventCountry "POL"]
[SourceTitle "playchess.com"]
[Source "ChessBase"]
[SourceQuality "1"]
[TimeControl "40/5400+30:1800+30"]

{[%evp 14,117,0,8,2,0,0,8,3,12,23,0,10,15,12,26,26,22,22,1,6,8,8,7,46,39,56,56,56,56,78,47,65,37,43,41,39,37,28,14,37,27,17,16,58,29,168,165,131,140,157,175,174,165,200,204,208,209,239,222,275,269,294,290,251,170,151,154,170,88,77,90,329,322,664,703,768,783,666,181,181,0,639,190,676,620,950,964,963,937,899,849,29983,762,697,518,1083,1002,1008,989,1338,1195,1160,1041,1383,703]} 1. e4 {[%emt 0:00:05]} c5 {[%emt 0:00:38]} 2. Nf3 {[%emt 0:00:01]} d6 {[%emt 0:00:30]} 3. d4 {[%emt 0:00:30]} cxd4 4. Nxd4 {[%emt 0:00:06]} Nf6 {[%emt 0:00:37]} 5. Nc3 {[%emt 0:00:09]} a6 {[%emt 0:00:15]} 6. a4 e5 7. Nf3 {[%emt 0:00:52]} Be7 {[%emt 0:03:34] 7...Be7 scores better than 7...Qc7.} 8. Bg5 {[%emt 0:00:11]} Be6 {Inhibits Bc4. B90: Sicilian Najdorf: Unusual White 6th moves, 6 Be3 Ng4 and 6 Be3 e5.} 9. Bxf6 Bxf6 {[%emt 0:02:32]} 10. Nd5 {[%emt 0:00:34] Prevents Qb6.} Nd7 {The position is equal.} 11. Bc4 {[%emt 0:00:19]} Rc8 {[%emt 0:16:50]} 12. b3 {[%emt 0:01:28]} Nb6 {[%emt 0:03:53]} 13. Nxf6+ {[%emt 0:11:51]} Qxf6 {[%emt 0:00:48]} 14. Bxe6 {[%emt 0:00:08]} Qxe6 {[%emt 0:00:24]} 15. O-O {[%emt 0:10:58]} O-O {[%emt 0:00:28] [#]} 16. a5 $146 {[%emt 0:02:59]} ({Predecessor:} 16. c4 Nd7 17. Nd2 Nc5 18. Re1 f5 19. exf5 Qxf5 20. f3 Nd3 21. Rf1 Rfd8 22. Ne4 {½-½ (31) Firouzja,A (2770)-Vachier Lagrave,M (2763) Riga 2021}) 16... Nd7 {[%emt 0:00:16]} 17. Nd2 {[%emt 0:00:05]} Nf6 {[%emt 0:06:52]} 18. c4 {[%emt 0:11:45]} Nd7 {[%emt 0:03:34]} 19. Nb1 {[%emt 0:01:37]} g6 {[%emt 0:06:56]} 20. Nc3 {[%emt 0:00:58]} f5 {[%emt 0:00:11]} 21. Ra2 {[%emt 0:06:28]} f4 {[%emt 0:01:31][%cal Of4f3]} 22. f3 {[%emt 0:04:37]} (22. Rd2 $5 {[%cal Rd2d6]} Rc6 23. Nd5 $16) 22... g5 {[%emt 0:12:07]} 23. Ra4 {[%emt 0:20:54][%cal Ba2a4,Ba4b4,Bb4b6][%mdl 32]} Nf6 {[%emt 0:08:29]} 24. Rb4 {[%emt 0:01:28]} Rf7 {[%emt 0:00:13]} 25. Rb6 {[%emt 0:05:04]} Rc6 {[%emt 0:00:32]} 26. Nd5 {[%emt 0:00:40][%cal Bc3d5,Bd5b4,Bb4d3][%mdl 32] Nxf6+ is the strong threat.} Ne8 {[%emt 0:10:51]} 27. Nb4 {[%emt 0:01:01]} Rxb6 {[%emt 0:02:58]} 28. axb6 {[%emt 0:00:05]} Qc8 {[%emt 0:00:09] And now ...Qc5+ would win.} 29. Qd5 {[%emt 0:01:51]} Qc5+ {[%emt 0:00:51]} (29... g4 $11) 30. Qxc5 $18 {[%emt 0:00:50]} dxc5 {[%emt 0:00:02][%mdl 4096] Endgame KRN-KRN} 31. Nd3 {[%emt 0:02:10][%csl LRc5,LRe5]} Rf6 {[%emt 0:01:37]} 32. Nxc5 {[%emt 0:03:19]} ({Much weaker is} 32. Nxe5 $6 Rxb6 33. Nd7 Rxb3 $11) 32... Rxb6 {[%emt 0:02:33]} 33. Rd1 $1 {[%emt 0:00:16]} Nf6 {[%emt 0:01:01] [#]} 34. Rd8+ $1 {[%emt 0:06:15]} Kf7 {[%emt 0:00:10]} 35. Rb8 {[%emt 0:00:07]} Rd6 {[%emt 0:01:00][%cal Ob7b5]} 36. Rxb7+ {[%emt 0:00:12]} Kg6 {[%emt 0:00:07]} 37. Ra7 {[%emt 0:00:39]} Rd1+ {[%emt 0:03:06]} 38. Kf2 {[%emt 0:00:06]} Rd2+ {[%emt 0:00:03]} 39. Kf1 {[%emt 0:01:09]} g4 {[%emt 0:00:24]} 40. Rxa6 {[%emt 0:00:00] Threatens to win with Ke1. White is more active.} g3 {[%emt 0:00:00]} 41. hxg3 {[%emt 0:15:55]} ({Better is} 41. h4 $18) 41... fxg3 $16 {[%emt 0:05:22] [#]} 42. f4 $1 {[%emt 0:00:10][%cal Bf3f4,Bf4e5,Be5e6][%mdl 32]} Kf7 $2 {[%emt 0:04:01]} (42... Kg7 $16) 43. fxe5 $18 {[%emt 0:02:44]} Ng4 {[%emt 0:00:37]} (43... Rf2+ 44. Ke1 Nh5 45. e6+ Ke7 46. Ra7+ Ke8) 44. e6+ {[%emt 0:00:51]} ({Weaker is} 44. Ra7+ Ke8 $16) 44... Ke7 {[%emt 0:06:12]} 45. Ra7+ {[%emt 0:00:22]} Ke8 {[%emt 0:00:07]} 46. Ra8+ $2 {[%emt 0:01:04]} (46. Na6 Rd4 47. Ke2) 46... Ke7 {[%emt 0:00:27]} 47. Ra7+ {[%emt 0:00:07]} Ke8 {[%emt 0:00:05]} 48. Rg7 $2 {[%emt 0:09:12]} (48. Na6 Nh2+ 49. Ke1) 48... Ne3+ $2 {[%emt 0:17:11]} (48... Nh2+ 49. Ke1 Rxg2) 49. Ke1 {[%emt 0:00:08]} Rxg2 {[%emt 0:00:05]} 50. Nd7 {[%emt 0:06:34] Threatening mate with Nf6+.} Nc2+ {[%emt 0:07:31]} 51. Kd1 {[%emt 0:00:12]} Ne3+ {[%emt 0:00:08]} 52. Kc1 {[%emt 0:00:12]} Rc2+ {[%emt 0:00:10]} 53. Kb1 {[%emt 0:00:04] Intending Nf6+ and mate.} Rf2 {[%emt 0:00:04] White is clearly winning.} 54. Rxg3 {[%emt 0:03:02]} Nf1 {[%emt 0:00:06]} (54... Nc2 $142 55. Rg8+ Ke7) 55. Rg8+ {[%emt 0:00:33]} Ke7 {[%emt 0:00:08]} 56. Nc5 {[%emt 0:00:12]} h5 {[%emt 0:00:50]} 57. Rg7+ {[%emt 0:00:56]} Ke8 {[%emt 0:00:29]} 58. e5 {[%emt 0:00:46]} h4 {[%emt 0:00:48]} 59. Ne4 {[%emt 0:01:12] Weighted Error Value: White=0.49/Black=0.45} 1-0

[Event "VII Totalizator Sportowy 2022"]
[Site "Bydgoszcz"]
[Date "2022.06.28"]
[Round "4.5"]
[White "Janik, Igor"]
[Black "Sieciechowicz, Marcin"]
[Result "1/2-1/2"]
[ECO "E71"]
[WhiteElo "2525"]
[BlackElo "2388"]
[Annotator "TA"]
[PlyCount "109"]
[EventDate "2022.06.25"]
[EventType "swiss"]
[EventCountry "POL"]
[SourceTitle "playchess.com"]
[Source "ChessBase"]
[SourceQuality "1"]
[TimeControl "40/5400+30:1800+30"]

{[%evp 14,109,33,39,33,55,36,35,62,53,49,53,92,82,82,80,89,87,126,110,119,127,151,126,166,52,79,64,63,64,53,47,46,50,53,14,9,5,4,8,12,8,10,8,6,8,16,27,33,8,8,0,0,0,0,0,8,0,0,0,0,0,0,0,0,0,0,0,0,0,0,0,0,0,0,0,0,0,0,0,0,0,0,0,0,0,0,0,0,0,0,0,0,0,0,0,0,-8]} 1. c4 {[%emt 0:00:01]} Nf6 {[%emt 0:00:11]} 2. Nc3 {[%emt 0:00:06]} g6 {[%emt 0:00:09]} 3. e4 {[%emt 0:00:04]} d6 {[%emt 0:00:09]} 4. d4 {[%emt 0:00:09]} Bg7 {[%emt 0:00:06]} 5. h3 {[%emt 0:00:04]} O-O {[%emt 0:00:16]} 6. Be3 {[%emt 0:00:00]} c5 {[%emt 0:00:57]} 7. Nf3 cxd4 8. Nxd4 {[%emt 0:00:59]} ({Much worse is} 8. Qxd4 Ng4 $1 9. Qd2 Nxe3 10. Qxe3 Nc6 $15) 8... b6 {[%emt 0:03:41] E90: King's Indian: Classical: Early deviations and 6 h3.} 9. Qd2 {[%emt 0:00:25]} Bb7 10. f3 {[%emt 0:00:40]} Nbd7 {[%emt 0:03:42] White is slightly better.} 11. h4 h5 {[%emt 0:02:33]} 12. Bh6 {[%emt 0:03:10][%cal Og2g4] [#]} e6 $146 {[%emt 0:09:39]} ({Predecessor:} 12... Bh8 13. O-O-O Ne5 14. Kb1 a6 15. Bxf8 Kxf8 16. Rc1 Rc8 17. Nd5 e6 18. Nxf6 Bxf6 {½-½ (37) Sivuk,V (2546)-Amonatov,F (2632) Astana 2019}) 13. Bxg7 {[%emt 0:01:42] White is more active.} Kxg7 {[%emt 0:00:30]} 14. O-O-O {[%emt 0:00:57]} a6 {[%emt 0:04:15] Prevents Ndb5.} 15. Nc2 {[%emt 0:05:32]} d5 {[%emt 0:05:53]} 16. exd5 {[%emt 0:02:58]} exd5 {[%emt 0:00:23]} 17. cxd5 {[%emt 0:00:47][%cal Og2g4]} ({Don't do} 17. Nxd5 Nxd5 18. cxd5 Qf6 $14) 17... Rc8 {[%emt 0:03:09]} 18. Kb1 {[%emt 0:03:33][%cal Og2g4]} Qc7 {[%emt 0:03:54] [#]} 19. Qd4 {[%emt 0:10:40]} ({White should play} 19. Nd4 $1 $18) 19... Qe5 {[%emt 0:12:31]} 20. Bc4 {[%emt 0:05:27]} Qxd4 {[%emt 0:05:45]} 21. Rxd4 {[%emt 0:00:12]} b5 {[%emt 0:03:50]} 22. Bb3 {[%emt 0:01:53]} Nc5 {[%emt 0:00:18]} 23. Rhd1 {[%emt 0:01:13]} Rfe8 {[%emt 0:03:41]} 24. d6 {[%emt 0:13:11] Prevents Re7.} Rcd8 {[%emt 0:03:22]} 25. Nb4 {[%emt 0:02:58][%cal Bc2b4,Bb4d3,Bd3c5][%mdl 32]} Nxb3 {[%emt 0:02:29]} 26. axb3 {[%emt 0:00:51]} Re6 $1 {[%emt 0:02:00]} 27. Kc2 {[%emt 0:04:46]} Rd7 {[%emt 0:02:27]} 28. Nd3 {[%emt 0:02:48] Nc5 is the strong threat.} Rexd6 {[%emt 0:00:50]} 29. Rxd6 {[%emt 0:00:08]} Rxd6 {[%emt 0:00:01]} 30. Nc5 {[%emt 0:00:08][%csl LRb7,LRd6]} Rxd1 {[%emt 0:00:49]} 31. Nxd1 $11 {[%emt 0:00:08][%mdl 4096] Endgame KBN-KNN} (31. Kxd1 $5 {[%cal Rc5b7]} Bc8 32. Ke2 $11) 31... Bc8 {[%emt 0:00:33] The position is equal.} 32. Kc3 {[%emt 0:01:21]} Nd5+ {[%emt 0:14:49]} 33. Kd4 {[%emt 0:01:02]} Nf4 {[%emt 0:02:35]} 34. Ne3 {[%emt 0:00:34]} f6 {[%emt 0:00:22]} 35. Nd3 {[%emt 0:01:45]} Ne2+ {[%emt 0:03:35]} 36. Kd5 {[%emt 0:04:15]} g5 {[%emt 0:02:26]} 37. hxg5 {[%emt 0:02:41]} fxg5 {[%emt 0:00:01]} 38. Ke5 {[%emt 0:00:09]} Kg6 {[%emt 0:06:04]} 39. Nd5 {[%emt 0:14:54]} Bb7 {[%emt 0:00:02]} 40. Ne7+ {[%emt 0:00:00]} Kf7 {[%emt 0:00:00]} 41. Nf5 {[%emt 0:00:13] Threatens to win with Nd6+.} Ba8 {[%emt 0:02:02]} 42. b4 {[%emt 0:12:11]} h4 {[%emt 0:02:10]} 43. Nd4 {[%emt 0:00:48]} Nxd4 {[%emt 0:03:07]} 44. Kxd4 {[%emt 0:00:47] KB-KN} Ke6 {[%emt 0:04:46]} 45. Nc5+ {[%emt 0:01:14]} Kf5 {[%emt 0:03:52] White must now prevent ...Kf4.} 46. Ke3 {[%emt 0:00:09]} g4 {[%emt 0:00:34]} 47. fxg4+ {[%emt 0:00:35]} Kxg4 {[%emt 0:00:03]} 48. Kf2 {[%emt 0:00:04]} Kf4 {[%emt 0:00:35]} 49. Nxa6 {[%emt 0:00:20]} Ke4 {[%emt 0:00:52]} 50. g3 {[%emt 0:01:51]} hxg3+ {[%emt 0:00:30]} (50... h3 {is interesting.} 51. Kg1 Kd4 52. Kh2 Bb7) 51. Kxg3 {[%emt 0:00:02]} Kd4 {[%emt 0:00:14]} 52. Kf4 {[%emt 0:00:03]} Kc4 {[%emt 0:00:13]} 53. Ke5 {[%emt 0:01:04]} Bb7 {[%emt 0:00:08]} 54. Nc7 {[%emt 0:00:08]} Kxb4 {[%emt 0:00:10]} 55. Nxb5 {[%emt 0:00:04] Weighted Error Value: White=0.06 (flawless) /Black=0.04 (flawless)} 1/2-1/2

[Event "VII Totalizator Sportowy 2022"]
[Site "Bydgoszcz"]
[Date "2022.06.28"]
[Round "4.6"]
[White "Kacprzak, Kacper"]
[Black "Tomczak, Jacek"]
[Result "1/2-1/2"]
[ECO "D85"]
[WhiteElo "2238"]
[BlackElo "2584"]
[Annotator "TA"]
[PlyCount "45"]
[EventDate "2022.06.25"]
[EventType "swiss"]
[EventCountry "POL"]
[SourceTitle "playchess.com"]
[Source "ChessBase"]
[SourceQuality "1"]
[TimeControl "40/5400+30:1800+30"]

{[%evp 24,45,34,25,60,64,46,66,66,52,64,19,19,-16,-17,0,0,0,0,0,0,0,0,0]} 1. d4 Nf6 {[%emt 0:00:11]} 2. c4 {[%emt 0:03:50]} g6 {[%emt 0:00:29]} 3. Nc3 {[%emt 0:00:06]} d5 {[%emt 0:00:09]} 4. cxd5 Nxd5 {[%emt 0:00:07]} 5. e4 {[%emt 0:01:43]} Nxc3 6. bxc3 {[%emt 0:00:04][%cal Bb2c3,Bc3d4,Bd4d5,Bd5d6][%mdl 32]} Bg7 {[%emt 0:00:13]} 7. Nf3 {[%emt 0:00:06]} c5 {[%emt 0:00:29]} 8. Rb1 {[%emt 0:00:51]} O-O 9. Be2 cxd4 {[%emt 0:14:59]} 10. cxd4 {[%emt 0:00:24]} Qa5+ {[%emt 0:00:03]} 11. Bd2 {[%emt 0:00:52]} Qxa2 {[%emt 0:00:12]} 12. O-O {[%emt 0:00:06]} Bg4 {[%emt 0:00:27]} 13. Bg5 {[%emt 0:00:59]} Nc6 {[%emt 0:06:54] D85: Exchange Grünfeld: Unusual White 7th moves and lines with 7 Nf3.} 14. d5 {[%emt 0:02:37][%mdl 64] [#] Deflection} ({Much worse is} 14. Rxb7 $6 Bxf3 15. Bxf3 Nxd4 $11) 14... Na5 {[%emt 0:02:39]} 15. Bxe7 {[%emt 0:10:21]} Rfe8 {[%emt 0:04:33] White is slightly better.} 16. d6 {[%emt 0:04:12] Strongly threatening e5.} Nc6 {[%emt 0:04:17] [#] Against e5} 17. Rxb7 $146 {[%emt 0:06:58] Bb5 is the strong threat.} (17. Bb5 $5 {[%cal Rb5c6]}) ({Predecessor:} 17. Bg5 Rxe4 18. Re1 Bxf3 19. Bxf3 Rd4 20. d7 Rxd1 21. Rbxd1 Rf8 22. Bxc6 bxc6 23. Re8 Bd4 24. Rxf8+ {1-0 (24) Hummel,J (1894)-Van Gelder,J (1807) Hoogeveen 2001}) 17... Nxe7 {[%emt 0:03:35] The position is equal.} 18. dxe7 {[%emt 0:05:41] [#] Threatens to win with Bb5.} Bf6 $1 {[%emt 0:08:58]} 19. Qd6 {[%emt 0:21:52]} Bxe7 {[%emt 0:17:38]} 20. Rxe7 {[%emt 0:00:21]} Rxe7 {[%emt 0:08:41]} 21. Qxe7 {[%emt 0:00:10]} Qxe2 {[%emt 0:00:04]} 22. Ng5 {[%emt 0:07:01]} Qc4 {[%emt 0:03:07]} 23. h3 {[%emt 0:03:45] Weighted Error Value: White=0.10 (very precise) /Black=0.03 (flawless)} 1/2-1/2

[Event "VII Totalizator Sportowy 2022"]
[Site "Bydgoszcz"]
[Date "2022.06.28"]
[Round "4.7"]
[White "Gumularz, Szymon"]
[Black "Malek, Jan"]
[Result "1/2-1/2"]
[ECO "D41"]
[WhiteElo "2513"]
[BlackElo "2316"]
[Annotator "TA"]
[PlyCount "83"]
[EventDate "2022.06.25"]
[EventType "swiss"]
[EventCountry "POL"]
[SourceTitle "playchess.com"]
[Source "ChessBase"]
[SourceQuality "1"]
[TimeControl "40/5400+30:1800+30"]

{[%evp 26,83,45,0,10,0,2,5,29,17,10,0,0,-9,-7,-7,-7,-8,-8,-6,-4,-23,0,0,0,0,0,0,0,0,0,0,0,0,0,0,0,0,0,0,0,0,0,0,0,0,0,0,0,0,0,0,0,0,0,0,0,0,0,0]} 1. d4 {[%emt 0:00:03]} Nf6 {[%emt 0:00:06]} 2. Nf3 {[%emt 0:00:04]} d5 {[%emt 0:00:07]} 3. c4 {[%emt 0:00:05]} e6 {[%emt 0:00:00]} 4. Nc3 {[%emt 0:04:19]} c5 5. cxd5 Nxd5 {[%emt 0:00:52]} 6. e4 {[%emt 0:01:46]} Nxc3 {[%emt 0:00:00]} 7. bxc3 {[%emt 0:00:05]} cxd4 8. cxd4 {[%emt 0:00:04]} Bb4+ {[%emt 0:00:18]} 9. Bd2 {[%emt 0:00:08]} Bxd2+ 10. Qxd2 {[%emt 0:00:10]} O-O {[%emt 0:00:09]} 11. Bc4 {[%emt 0:01:01]} Nd7 {[%emt 0:00:06]} 12. O-O {[%emt 0:02:59]} b6 {[%emt 0:00:00]} 13. Rfe1 Bb7 14. Rad1 {[%emt 0:00:49]} Rc8 {[%emt 0:00:17] D41: Queen's Gambit Declined: Semi-Tarrasch with 5 cxd5.} 15. Bb3 {[%emt 0:00:07]} h6 {[%emt 0:02:58]} 16. Re3 {[%emt 0:06:16]} Nf6 {[%emt 0:01:11]} 17. Qe1 {[%emt 0:05:06]} Re8 {[%emt 0:13:33]} 18. h3 {[%emt 0:09:21][%cal Od4d5]} Qc7 {[%emt 0:09:51]} 19. Ne5 {[%emt 0:28:53]} b5 {[%emt 0:09:44]} 20. f4 {[%emt 0:04:43]} a5 {[%emt 0:02:10] [#]} 21. d5 $146 {[%emt 0:12:20]} ({Predecessor:} 21. a4 bxa4 22. Bxa4 Red8 23. Kh2 Qd6 24. Bb3 Qb4 25. Qxb4 axb4 26. f5 Bxe4 27. fxe6 {1-0 (40) Basso,P (2596)-Melia,S (2370) Chess.com INT 2020}) 21... exd5 {[%emt 0:08:56]} (21... a4 {looks sharper.} 22. d6 Qb6 23. Bxa4 bxa4 24. d7 Nxd7 25. Rxd7 Rc7) 22. exd5 {[%emt 0:00:31] [#] Strongly threatening d6.} Qd6 $1 {[%emt 0:00:07]} 23. a4 {[%emt 0:07:56]} b4 {[%emt 0:27:57]} 24. Qd2 {[%emt 0:04:55] The position is equal.} Red8 {[%emt 0:02:10][%cal Rb7d5]} 25. Kh1 {[%emt 0:01:28]} Rc5 {[%emt 0:04:25]} 26. Nxf7 $1 {[%emt 0:05:02]} Kxf7 {[%emt 0:00:03]} 27. Re6 {[%emt 0:00:04]} Qd7 {[%emt 0:08:54]} 28. d6 {[%emt 0:01:26]} Qxe6 {[%emt 0:02:15]} (28... Kf8 29. Qd4 Nd5 30. Qe5 $16 (30. Qxc5 Qxe6 31. Rxd5 Bxd5 $11)) 29. Bxe6+ {[%emt 0:00:16]} Kxe6 {[%emt 0:00:02]} 30. Qe3+ {[%emt 0:02:07]} Ne4 {[%emt 0:00:06]} 31. Rd4 {[%emt 0:00:13] Really sharp!} Rcc8 $1 {[%emt 0:01:27]} (31... Rxd6 $2 32. Rxe4+ Bxe4 33. Qxc5 $18) 32. Rxe4+ {[%emt 0:02:31]} Bxe4 {[%emt 0:00:03]} 33. Qxe4+ {[%emt 0:00:03]} Kxd6 $11 {[%emt 0:00:17][%mdl 4096] Endgame KQ-KRR} 34. Qe5+ {[%emt 0:00:51]} Kc6 {[%emt 0:00:00]} 35. Qb5+ {[%emt 0:00:23]} Kd6 {[%emt 0:00:01]} 36. Qxa5 {[%emt 0:01:20]} Rb8 {[%emt 0:00:33]} 37. Qe5+ {[%emt 0:00:07]} Kc6 {[%emt 0:00:05]} 38. Qxg7 {[%emt 0:01:15]} b3 {[%emt 0:00:15] [#] And now ...Rd1+ would win.} 39. Qc3+ {[%emt 0:00:08]} Kd5 {[%emt 0:00:12]} 40. Qd3+ {[%emt 0:00:00]} Kc5 {[%emt 0:00:00]} 41. Qc3+ {[%emt 0:01:47]} Kd5 {[%emt 0:01:09]} 42. Qd3+ {[%emt 0:13:54] A balanced but interesting game.  Weighted Error Value: White=0.04 (flawless) /Black=0.02 (flawless)} 1/2-1/2